[Event "*** Titled Tuesday Blitz"]
[Site "Chess.com"]
[Date "2021.03.16"]
[Round "8"]
[White "Konavets"]
[Black "NTBT_DHS"]
[Result "1-0"]
[WhiteElo "2948"]
[BlackElo "2789"]
[TimeControl "180+1"]
[EndTime "11:27:11 PDT"]
[Termination "Konavets won by resignation"]

1. e4 {[%clk 0:02:00.4]} 1... g6 {[%clk 0:03:00]} 2. d4 {[%clk 0:02:00.1]} 2...
Bg7 {[%clk 0:03:00.6]} 3. Nc3 {[%clk 0:02:00.7]} 3... a6 {[%clk 0:03:00.5]} 4.
h4 {[%clk 0:02:01.3]} 4... h5 {[%clk 0:02:58.7]} 5. Bg5 {[%clk 0:02:01]} 5...
Nf6 {[%clk 0:02:55.8]} 6. e5 {[%clk 0:02:00.5]} 6... Nh7 {[%clk 0:02:56.2]} 7.
Be3 {[%clk 0:02:00.5]} 7... d6 {[%clk 0:02:56.7]} 8. f4 {[%clk 0:02:00.3]} 8...
Bh6 {[%clk 0:02:53.3]} 9. Nf3 {[%clk 0:01:59.6]} 9... Nd7 {[%clk 0:02:52.1]} 10.
e6 {[%clk 0:01:58.4]} 10... Ndf6 {[%clk 0:02:50.2]} 11. exf7+ {[%clk 0:01:58]}
11... Kxf7 {[%clk 0:02:50.6]} 12. Ng5+ {[%clk 0:01:58.6]} 12... Kg7 {[%clk
0:02:46.4]} 13. d5 {[%clk 0:01:58.8]} 13... Rf8 {[%clk 0:02:39.7]} 14. Bd3
{[%clk 0:01:56.8]} 14... c5 {[%clk 0:02:36.2]} 15. a4 {[%clk 0:01:48.8]} 15...
Ng4 {[%clk 0:02:29.4]} 16. Qe2 {[%clk 0:01:48.9]} 16... Nhf6 {[%clk 0:02:25.1]}
17. f5 {[%clk 0:01:41.4]} 17... Nxe3 {[%clk 0:02:07.4]} 18. Qxe3 {[%clk
0:01:42.3]} 18... Ng4 {[%clk 0:02:07.7]} 19. Ne6+ {[%clk 0:01:04.8]} 19... Bxe6
{[%clk 0:02:03]} 20. Qxe6 {[%clk 0:01:05.7]} 20... Ne5 {[%clk 0:01:45.3]} 21.
fxg6 {[%clk 0:00:46.7]} 21... Rf6 {[%clk 0:01:37.9]} 22. Qh3 {[%clk 0:00:44.6]}
22... Qb6 {[%clk 0:01:35.9]} 23. Ne4 {[%clk 0:00:32.4]} 23... Qxb2 {[%clk
0:01:26.9]} 24. Rd1 {[%clk 0:00:32]} 24... Qb4+ {[%clk 0:01:06.2]} 25. c3 {[%clk
0:00:31.9]} 25... Qb2 {[%clk 0:00:53.5]} 26. Nxf6 {[%clk 0:00:30.6]} 26... Qxc3+
{[%clk 0:00:49.8]} 27. Ke2 {[%clk 0:00:31.1]} 27... Qb2+ {[%clk 0:00:48.2]} 28.
Ke1 {[%clk 0:00:30.8]} 28... Qc3+ {[%clk 0:00:35.8]} 29. Ke2 {[%clk 0:00:30.6]}
29... exf6 {[%clk 0:00:35.5]} 30. Qe6 {[%clk 0:00:30.2]} 30... Nxd3 {[%clk
0:00:23.5]} 31. Qf7+ {[%clk 0:00:29.4]} 1-0

[Event "*** Titled Tuesday Blitz"]
[Site "Chess.com"]
[Date "2021.03.16"]
[Round "8"]
[White "whogeeyao"]
[Black "campomania3"]
[Result "0-1"]
[WhiteElo "2309"]
[BlackElo "2193"]
[TimeControl "180+1"]
[EndTime "11:27:11 PDT"]
[Termination "campomania3 won by resignation"]

1. e4 {[%clk 0:03:00.3]} 1... c6 {[%clk 0:02:59.6]} 2. Bc4 {[%clk 0:03:00.4]}
2... d5 {[%clk 0:02:59.2]} 3. Bb3 {[%clk 0:03:01.1]} 3... e6 {[%clk 0:02:55.5]}
4. e5 {[%clk 0:03:01.1]} 4... c5 {[%clk 0:02:53.6]} 5. d4 {[%clk 0:02:59.8]}
5... Nc6 {[%clk 0:02:50.6]} 6. Nf3 {[%clk 0:02:56.9]} 6... Nge7 {[%clk
0:02:39.5]} 7. Bg5 {[%clk 0:02:26.7]} 7... Qa5+ {[%clk 0:02:38.3]} 8. Bd2 {[%clk
0:02:23.4]} 8... Qb6 {[%clk 0:02:36.7]} 9. dxc5 {[%clk 0:02:16.2]} 9... Qxc5
{[%clk 0:02:35.9]} 10. O-O {[%clk 0:02:16.8]} 10... Ng6 {[%clk 0:02:30.1]} 11.
Re1 {[%clk 0:02:17.3]} 11... Be7 {[%clk 0:02:28]} 12. Nc3 {[%clk 0:02:17.1]}
12... b5 {[%clk 0:02:09.5]} 13. a3 {[%clk 0:02:09.1]} 13... Qb6 {[%clk
0:02:04.6]} 14. Qe2 {[%clk 0:02:06.3]} 14... O-O {[%clk 0:02:01.9]} 15. Qxb5
{[%clk 0:02:04.6]} 15... Qxb5 {[%clk 0:01:57.9]} 16. Nxb5 {[%clk 0:02:05.5]}
16... Rb8 {[%clk 0:01:54.4]} 17. Nbd4 {[%clk 0:02:03.3]} 17... Bd7 {[%clk
0:01:37.8]} 18. Nxc6 {[%clk 0:01:56.9]} 18... Bxc6 {[%clk 0:01:37.2]} 19. Be3
{[%clk 0:01:57.4]} 19... a6 {[%clk 0:01:36.3]} 20. Nd4 {[%clk 0:01:48.4]} 20...
Bd7 {[%clk 0:01:32]} 21. f4 {[%clk 0:01:48.6]} 21... Rfc8 {[%clk 0:01:27.2]} 22.
Kh1 {[%clk 0:01:38.3]} 22... a5 {[%clk 0:01:26.5]} 23. a4 {[%clk 0:01:37.7]}
23... Bc5 {[%clk 0:01:18.8]} 24. Rad1 {[%clk 0:01:29.6]} 24... Rb4 {[%clk
0:01:15.8]} 25. f5 {[%clk 0:00:57.7]} 25... Nxe5 {[%clk 0:01:05.2]} 26. fxe6
{[%clk 0:00:57.8]} 26... fxe6 {[%clk 0:01:04.2]} 27. Nxe6 {[%clk 0:00:52.1]}
27... Bxe3 {[%clk 0:00:49.5]} 28. Rxe3 {[%clk 0:00:52.4]} 28... Ng4 {[%clk
0:00:48.7]} 29. Rxd5 {[%clk 0:00:25.1]} 29... Nxe3 {[%clk 0:00:41.2]} 30. Rxd7
{[%clk 0:00:24.6]} 30... Rxb3 {[%clk 0:00:38.5]} 0-1

[Event "*** Titled Tuesday Blitz"]
[Site "Chess.com"]
[Date "2021.03.16"]
[Round "8"]
[White "Chesseyat004"]
[Black "kreonx"]
[Result "0-1"]
[WhiteElo "2454"]
[BlackElo "2339"]
[TimeControl "180+1"]
[EndTime "11:27:22 PDT"]
[Termination "kreonx won by resignation"]

1. e4 {[%clk 0:03:00.9]} 1... c6 {[%clk 0:03:00.5]} 2. d3 {[%clk 0:02:55.9]}
2... d5 {[%clk 0:03:01.4]} 3. Nf3 {[%clk 0:02:56.4]} 3... Bg4 {[%clk 0:02:58.4]}
4. h3 {[%clk 0:02:56.2]} 4... dxe4 {[%clk 0:02:50.8]} 5. hxg4 {[%clk 0:02:51.2]}
5... exf3 {[%clk 0:02:50.1]} 6. Qxf3 {[%clk 0:02:42.1]} 6... e5 {[%clk
0:02:45.7]} 7. Nc3 {[%clk 0:02:40.5]} 7... Nf6 {[%clk 0:02:22.4]} 8. Bg5 {[%clk
0:02:18.9]} 8... Nbd7 {[%clk 0:02:20]} 9. O-O-O {[%clk 0:02:08.4]} 9... Qa5
{[%clk 0:02:15.2]} 10. Kb1 {[%clk 0:02:00]} 10... Bb4 {[%clk 0:01:50.4]} 11. Ne4
{[%clk 0:01:49.5]} 11... Nxe4 {[%clk 0:01:39.8]} 12. dxe4 {[%clk 0:01:50]} 12...
f6 {[%clk 0:01:11.1]} 13. Bc4 {[%clk 0:01:35.3]} 13... O-O-O {[%clk 0:01:04.1]}
14. Bc1 {[%clk 0:01:18.5]} 14... Kc7 {[%clk 0:00:50.2]} 15. a3 {[%clk
0:01:13.9]} 15... Be7 {[%clk 0:00:47.8]} 16. g5 {[%clk 0:00:44]} 16... b5 {[%clk
0:00:40]} 17. Ba2 {[%clk 0:00:42.7]} 17... b4 {[%clk 0:00:39.2]} 18. axb4 {[%clk
0:00:38.1]} 18... Qxb4 {[%clk 0:00:33.1]} 19. gxf6 {[%clk 0:00:37.6]} 19... Nxf6
{[%clk 0:00:15.7]} 20. Rhe1 {[%clk 0:00:16.5]} 20... Rxd1 {[%clk 0:00:15]} 21.
Qxd1 {[%clk 0:00:13.8]} 21... Nxe4 {[%clk 0:00:12.9]} 22. f3 {[%clk 0:00:13.6]}
22... Nc3+ {[%clk 0:00:12.3]} 0-1

[Event "*** Titled Tuesday Blitz"]
[Site "Chess.com"]
[Date "2021.03.16"]
[Round "8"]
[White "MatyChess1"]
[Black "Sokoloco"]
[Result "0-1"]
[WhiteElo "2592"]
[BlackElo "2444"]
[TimeControl "180+1"]
[EndTime "11:27:23 PDT"]
[Termination "Sokoloco won by resignation"]

1. e4 {[%clk 0:03:00.9]} 1... g6 {[%clk 0:02:59.3]} 2. d4 {[%clk 0:03:00.8]}
2... Bg7 {[%clk 0:02:59.6]} 3. c3 {[%clk 0:03:01.4]} 3... d6 {[%clk 0:02:59.2]}
4. Bd3 {[%clk 0:03:01.8]} 4... e5 {[%clk 0:02:57.5]} 5. Nf3 {[%clk 0:03:00.6]}
5... Nc6 {[%clk 0:02:57.4]} 6. dxe5 {[%clk 0:02:56.6]} 6... dxe5 {[%clk
0:02:56.9]} 7. O-O {[%clk 0:02:56.4]} 7... Nf6 {[%clk 0:02:56.1]} 8. b4 {[%clk
0:02:55.9]} 8... a6 {[%clk 0:02:52.7]} 9. Qc2 {[%clk 0:02:54.4]} 9... O-O {[%clk
0:02:51.8]} 10. Nbd2 {[%clk 0:02:55]} 10... h6 {[%clk 0:02:36.1]} 11. Nc4 {[%clk
0:02:54.3]} 11... Re8 {[%clk 0:02:36]} 12. Re1 {[%clk 0:02:52.1]} 12... Bg4
{[%clk 0:02:31.7]} 13. Nfd2 {[%clk 0:02:51.7]} 13... Nd7 {[%clk 0:02:29.8]} 14.
Ne3 {[%clk 0:02:51.6]} 14... Be6 {[%clk 0:02:29.9]} 15. a4 {[%clk 0:02:48.9]}
15... b6 {[%clk 0:02:24.9]} 16. Ndc4 {[%clk 0:02:42.3]} 16... a5 {[%clk
0:02:12.1]} 17. b5 {[%clk 0:02:37.9]} 17... Ncb8 {[%clk 0:02:01.1]} 18. Ba3
{[%clk 0:02:23.8]} 18... Bf8 {[%clk 0:02:00.9]} 19. Bxf8 {[%clk 0:02:23.9]}
19... Kxf8 {[%clk 0:01:59.1]} 20. Rad1 {[%clk 0:02:22.2]} 20... Qf6 {[%clk
0:01:57.2]} 21. Nd5 {[%clk 0:02:14]} 21... Bxd5 {[%clk 0:01:57.1]} 22. exd5
{[%clk 0:02:14.8]} 22... Nc5 {[%clk 0:01:57.5]} 23. d6 {[%clk 0:02:10.1]} 23...
cxd6 {[%clk 0:01:52.2]} 24. Be4 {[%clk 0:02:04.6]} 24... Nxe4 {[%clk 0:01:46.3]}
25. Qxe4 {[%clk 0:02:05.5]} 25... Nd7 {[%clk 0:01:44]} 26. Rxd6 {[%clk 0:02:05]}
26... Qe7 {[%clk 0:01:44.7]} 27. Red1 {[%clk 0:01:41.4]} 27... Nc5 {[%clk
0:01:44.7]} 28. Qe3 {[%clk 0:01:41.1]} 28... Nxa4 {[%clk 0:01:43.8]} 29. Qxh6+
{[%clk 0:01:32.6]} 29... Kg8 {[%clk 0:01:43.9]} 30. R6d3 {[%clk 0:01:28.9]}
30... Rad8 {[%clk 0:01:39.6]} 31. Qe3 {[%clk 0:01:22.9]} 31... Nxc3 {[%clk
0:01:30.4]} 32. Re1 {[%clk 0:01:10.5]} 32... Nxb5 {[%clk 0:01:22.8]} 33. Rxd8
{[%clk 0:00:58.6]} 33... Qxd8 {[%clk 0:01:22.7]} 34. Nxe5 {[%clk 0:00:40.9]}
34... Qd4 {[%clk 0:01:13.1]} 35. Qxd4 {[%clk 0:00:06.9]} 35... Nxd4 {[%clk
0:01:12.3]} 36. Kf1 {[%clk 0:00:07.5]} 36... a4 {[%clk 0:00:59.3]} 37. Re4
{[%clk 0:00:05.4]} 37... Nc6 {[%clk 0:00:56.4]} 38. f4 {[%clk 0:00:04.2]} 38...
Nxe5 {[%clk 0:00:51.2]} 0-1

[Event "*** Titled Tuesday Blitz"]
[Site "Chess.com"]
[Date "2021.03.16"]
[Round "8"]
[White "Taran2004"]
[Black "CSB7"]
[Result "0-1"]
[WhiteElo "2440"]
[BlackElo "2610"]
[TimeControl "180+1"]
[EndTime "11:27:25 PDT"]
[Termination "CSB7 won by resignation"]

1. e4 {[%clk 0:03:00.9]} 1... e6 {[%clk 0:03:00.3]} 2. d4 {[%clk 0:03:00.5]}
2... d5 {[%clk 0:03:00.6]} 3. Nd2 {[%clk 0:03:00.5]} 3... Nf6 {[%clk 0:02:59.3]}
4. e5 {[%clk 0:03:00.4]} 4... Nfd7 {[%clk 0:02:59.8]} 5. Bd3 {[%clk 0:03:00.9]}
5... c5 {[%clk 0:02:59.9]} 6. c3 {[%clk 0:03:01.4]} 6... Nc6 {[%clk 0:03:00.1]}
7. Ne2 {[%clk 0:03:00.6]} 7... cxd4 {[%clk 0:02:59.4]} 8. cxd4 {[%clk
0:03:01.5]} 8... f6 {[%clk 0:02:59]} 9. exf6 {[%clk 0:03:02.4]} 9... Qxf6 {[%clk
0:02:58]} 10. Nf3 {[%clk 0:03:02.1]} 10... Bd6 {[%clk 0:02:51.6]} 11. Bg5 {[%clk
0:02:56.4]} 11... Qf7 {[%clk 0:02:48.2]} 12. O-O {[%clk 0:02:57]} 12... O-O
{[%clk 0:02:45.3]} 13. Ng3 {[%clk 0:02:53.1]} 13... Nf6 {[%clk 0:02:31.6]} 14.
a3 {[%clk 0:02:47.5]} 14... Bd7 {[%clk 0:02:30.3]} 15. Rc1 {[%clk 0:02:46.2]}
15... Rae8 {[%clk 0:02:26.8]} 16. Re1 {[%clk 0:02:46.2]} 16... Kh8 {[%clk
0:02:21.2]} 17. Ne5 {[%clk 0:02:44.1]} 17... Bxe5 {[%clk 0:02:10.8]} 18. dxe5
{[%clk 0:02:44.8]} 18... Ng8 {[%clk 0:01:58.4]} 19. Qh5 {[%clk 0:02:21]} 19...
Qxh5 {[%clk 0:01:48.7]} 20. Nxh5 {[%clk 0:02:21.9]} 20... Nge7 {[%clk
0:01:28.8]} 21. b4 {[%clk 0:02:21]} 21... a6 {[%clk 0:01:27.2]} 22. Re3 {[%clk
0:02:07]} 22... h6 {[%clk 0:01:15.4]} 23. Bh4 {[%clk 0:02:00]} 23... Nf5 {[%clk
0:01:09]} 24. Bxf5 {[%clk 0:01:50.9]} 24... Rxf5 {[%clk 0:01:09.9]} 25. Ng3
{[%clk 0:01:51]} 25... Rxe5 {[%clk 0:01:00]} 26. Rxe5 {[%clk 0:01:48.1]} 26...
Nxe5 {[%clk 0:01:00.9]} 27. Ne2 {[%clk 0:01:46.8]} 27... Nc4 {[%clk 0:00:58.2]}
28. f4 {[%clk 0:01:39.4]} 28... Nxa3 {[%clk 0:00:46.9]} 29. Rc7 {[%clk
0:01:38.1]} 29... Bc6 {[%clk 0:00:46.8]} 30. Nd4 {[%clk 0:01:32.8]} 30... Nb5
{[%clk 0:00:42.4]} 31. Nxb5 {[%clk 0:01:31.2]} 31... axb5 {[%clk 0:00:43.3]} 32.
Be1 {[%clk 0:00:59.4]} 32... d4 {[%clk 0:00:28.5]} 33. Kf2 {[%clk 0:00:55.7]}
33... Ra8 {[%clk 0:00:24.6]} 34. Kg3 {[%clk 0:00:49.4]} 34... Ra2 {[%clk
0:00:14.7]} 35. Bf2 {[%clk 0:00:48.6]} 35... d3 {[%clk 0:00:15]} 36. Bd4 {[%clk
0:00:48.4]} 36... Rxg2+ {[%clk 0:00:13.9]} 37. Kh4 {[%clk 0:00:46.7]} 37... d2
{[%clk 0:00:11.2]} 0-1

[Event "*** Titled Tuesday Blitz"]
[Site "Chess.com"]
[Date "2021.03.16"]
[Round "8"]
[White "SchmakAttack"]
[Black "Sharpchess22"]
[Result "0-1"]
[WhiteElo "2584"]
[BlackElo "2738"]
[TimeControl "180+1"]
[EndTime "11:27:28 PDT"]
[Termination "Sharpchess22 won by resignation"]

1. e4 {[%clk 0:03:00.9]} 1... c6 {[%clk 0:02:59.2]} 2. d4 {[%clk 0:03:00.7]}
2... d5 {[%clk 0:02:59]} 3. Nd2 {[%clk 0:03:01.4]} 3... dxe4 {[%clk 0:02:57.7]}
4. Nxe4 {[%clk 0:03:02.3]} 4... Bf5 {[%clk 0:02:56.4]} 5. Ng3 {[%clk 0:03:02.4]}
5... Bg6 {[%clk 0:02:56.7]} 6. h4 {[%clk 0:03:02.8]} 6... h6 {[%clk 0:02:56.5]}
7. Nf3 {[%clk 0:03:03.4]} 7... Nd7 {[%clk 0:02:55.3]} 8. h5 {[%clk 0:03:03.7]}
8... Bh7 {[%clk 0:02:55]} 9. Bd3 {[%clk 0:03:04.3]} 9... Bxd3 {[%clk 0:02:54.8]}
10. Qxd3 {[%clk 0:03:05.2]} 10... e6 {[%clk 0:02:54.8]} 11. Bd2 {[%clk
0:03:05.8]} 11... Ngf6 {[%clk 0:02:53.4]} 12. O-O-O {[%clk 0:03:05]} 12... a5
{[%clk 0:02:52.8]} 13. Ne4 {[%clk 0:02:52.8]} 13... Nxe4 {[%clk 0:02:49.2]} 14.
Qxe4 {[%clk 0:02:53.7]} 14... a4 {[%clk 0:02:37.4]} 15. Kb1 {[%clk 0:02:41]}
15... Nf6 {[%clk 0:02:34.7]} 16. Qe2 {[%clk 0:02:40.9]} 16... Qd5 {[%clk
0:02:33.8]} 17. Ne5 {[%clk 0:02:10.8]} 17... Bd6 {[%clk 0:01:57.1]} 18. g4
{[%clk 0:01:27.1]} 18... a3 {[%clk 0:01:54.4]} 19. b3 {[%clk 0:00:57.9]} 19...
Qxd4 {[%clk 0:01:33.9]} 20. Nc4 {[%clk 0:00:57.8]} 20... Bf8 {[%clk 0:00:57.4]}
21. g5 {[%clk 0:00:35.1]} 21... hxg5 {[%clk 0:00:42.8]} 22. Bxg5 {[%clk
0:00:32.9]} 22... Qe4 {[%clk 0:00:39.4]} 23. Qd2 {[%clk 0:00:25.5]} 23... Nd5
{[%clk 0:00:38]} 24. Rhe1 {[%clk 0:00:19.2]} 24... Qf5 {[%clk 0:00:38.1]} 25.
Re5 {[%clk 0:00:07.7]} 25... Qf3 {[%clk 0:00:27.1]} 26. Ne3 {[%clk 0:00:05.9]}
26... Bb4 {[%clk 0:00:23.7]} 27. Nxd5 {[%clk 0:00:02.6]} 27... Bxd2 {[%clk
0:00:23.7]} 28. Nc7+ {[%clk 0:00:02.4]} 28... Kf8 {[%clk 0:00:23.9]} 29. Rxd2
{[%clk 0:00:01.8]} 29... Qh1+ {[%clk 0:00:22.6]} 0-1

[Event "*** Titled Tuesday Blitz"]
[Site "Chess.com"]
[Date "2021.03.16"]
[Round "8"]
[White "youngKID"]
[Black "IwkooO"]
[Result "1-0"]
[WhiteElo "2792"]
[BlackElo "2627"]
[TimeControl "180+1"]
[EndTime "11:27:28 PDT"]
[Termination "youngKID won by resignation"]

1. Nf3 {[%clk 0:03:00.9]} 1... c5 {[%clk 0:02:56]} 2. g3 {[%clk 0:02:59.6]} 2...
Nc6 {[%clk 0:02:52.1]} 3. Bg2 {[%clk 0:03:00.5]} 3... g6 {[%clk 0:02:52.2]} 4.
h4 {[%clk 0:02:59.3]} 4... Nf6 {[%clk 0:02:49.4]} 5. c4 {[%clk 0:02:58.6]} 5...
Bg7 {[%clk 0:02:48.9]} 6. Nc3 {[%clk 0:02:58.3]} 6... d6 {[%clk 0:02:47.2]} 7.
d3 {[%clk 0:02:39.5]} 7... Bg4 {[%clk 0:02:47]} 8. Rb1 {[%clk 0:02:32.4]} 8...
O-O {[%clk 0:02:37.4]} 9. a3 {[%clk 0:02:32.5]} 9... Rb8 {[%clk 0:02:32]} 10. b4
{[%clk 0:02:30.7]} 10... b6 {[%clk 0:02:31]} 11. O-O {[%clk 0:02:23]} 11... Qd7
{[%clk 0:02:29.6]} 12. Nd5 {[%clk 0:02:18]} 12... Nxd5 {[%clk 0:02:24.6]} 13.
cxd5 {[%clk 0:02:17.6]} 13... Ne5 {[%clk 0:02:16]} 14. Nxe5 {[%clk 0:02:13.6]}
14... Bxe5 {[%clk 0:02:16.9]} 15. Kh2 {[%clk 0:02:08.7]} 15... Rbc8 {[%clk
0:02:11.1]} 16. f3 {[%clk 0:01:59.5]} 16... Bh5 {[%clk 0:02:05.5]} 17. Bb2
{[%clk 0:01:57]} 17... f5 {[%clk 0:01:26.9]} 18. bxc5 {[%clk 0:01:50.8]} 18...
bxc5 {[%clk 0:01:14.6]} 19. Bxe5 {[%clk 0:01:41.3]} 19... dxe5 {[%clk
0:01:15.5]} 20. Qb3 {[%clk 0:01:41.9]} 20... Qd6 {[%clk 0:01:11.2]} 21. Rfc1
{[%clk 0:01:37.4]} 21... h6 {[%clk 0:01:05]} 22. Qc4 {[%clk 0:01:13.7]} 22...
Rc7 {[%clk 0:00:52.1]} 23. Rb5 {[%clk 0:01:07.8]} 23... Rfc8 {[%clk 0:00:51.7]}
24. g4 {[%clk 0:01:00.2]} 24... e4+ {[%clk 0:00:41.7]} 25. Kh3 {[%clk 0:00:44]}
25... fxg4+ {[%clk 0:00:20.1]} 26. fxg4 {[%clk 0:00:43.6]} 26... Qd7 {[%clk
0:00:18.8]} 27. d6+ {[%clk 0:00:43.1]} 27... Kg7 {[%clk 0:00:17.1]} 28. dxc7
{[%clk 0:00:34.2]} 28... Qxg4+ {[%clk 0:00:17.4]} 29. Kh2 {[%clk 0:00:34.4]}
29... Qf4+ {[%clk 0:00:17.7]} 30. Kh1 {[%clk 0:00:32.7]} 30... Qxh4+ {[%clk
0:00:17.1]} 31. Kg1 {[%clk 0:00:32.6]} 31... Qg5 {[%clk 0:00:17.1]} 32. Qxc5
{[%clk 0:00:29.4]} 1-0

[Event "*** Titled Tuesday Blitz"]
[Site "Chess.com"]
[Date "2021.03.16"]
[Round "8"]
[White "Manukyan_Artak"]
[Black "Grieve72"]
[Result "0-1"]
[WhiteElo "2388"]
[BlackElo "2501"]
[TimeControl "180+1"]
[EndTime "11:27:30 PDT"]
[Termination "Grieve72 won by resignation"]

1. e4 {[%clk 0:02:57]} 1... c5 {[%clk 0:02:59.1]} 2. Nf3 {[%clk 0:02:56.5]} 2...
e6 {[%clk 0:02:59.4]} 3. c3 {[%clk 0:02:56.3]} 3... Nf6 {[%clk 0:02:59.1]} 4. e5
{[%clk 0:02:56.3]} 4... Nd5 {[%clk 0:02:59.6]} 5. d4 {[%clk 0:02:57.2]} 5...
cxd4 {[%clk 0:03:00.5]} 6. cxd4 {[%clk 0:02:58.1]} 6... d6 {[%clk 0:03:00.3]} 7.
Nc3 {[%clk 0:02:59]} 7... Nxc3 {[%clk 0:03:00.2]} 8. bxc3 {[%clk 0:02:59.9]}
8... Qc7 {[%clk 0:03:00.6]} 9. Bd2 {[%clk 0:03:00.5]} 9... Nd7 {[%clk
0:03:00.8]} 10. Bb5 {[%clk 0:02:58.5]} 10... a6 {[%clk 0:02:57.8]} 11. Bxd7+
{[%clk 0:02:58.4]} 11... Bxd7 {[%clk 0:02:58.7]} 12. O-O {[%clk 0:02:59]} 12...
Bc6 {[%clk 0:02:50.9]} 13. Re1 {[%clk 0:02:58.4]} 13... Be7 {[%clk 0:02:40.6]}
14. exd6 {[%clk 0:02:57.8]} 14... Bxd6 {[%clk 0:02:40.9]} 15. Ne5 {[%clk
0:02:58.7]} 15... O-O {[%clk 0:02:34.5]} 16. Qh5 {[%clk 0:02:52.8]} 16... Rac8
{[%clk 0:02:23.8]} 17. Re3 {[%clk 0:02:50.8]} 17... Bxe5 {[%clk 0:02:11.3]} 18.
Qxe5 {[%clk 0:02:42.3]} 18... Qxe5 {[%clk 0:02:09.7]} 19. Rxe5 {[%clk
0:02:43.1]} 19... Bd5 {[%clk 0:02:00.7]} 20. a4 {[%clk 0:02:41.8]} 20... Rc4
{[%clk 0:01:48.7]} 21. a5 {[%clk 0:02:39.1]} 21... Rb8 {[%clk 0:01:45.3]} 22.
Ree1 {[%clk 0:02:34.6]} 22... b5 {[%clk 0:01:28.8]} 23. axb6 {[%clk 0:02:33.8]}
23... Rxb6 {[%clk 0:01:29]} 24. Reb1 {[%clk 0:02:34.4]} 24... Rxb1+ {[%clk
0:01:22.8]} 25. Rxb1 {[%clk 0:02:35.3]} 25... h5 {[%clk 0:01:23.7]} 26. Ra1
{[%clk 0:02:28.1]} 26... Rc6 {[%clk 0:01:19.4]} 27. f3 {[%clk 0:02:26.3]} 27...
Kh7 {[%clk 0:01:15.2]} 28. Kf2 {[%clk 0:02:25.6]} 28... Kg6 {[%clk 0:01:14.9]}
29. Ke3 {[%clk 0:02:25.3]} 29... Kf5 {[%clk 0:01:14.9]} 30. Ra5 {[%clk
0:02:22.9]} 30... h4 {[%clk 0:01:09.8]} 31. h3 {[%clk 0:02:22.7]} 31... g5
{[%clk 0:01:07.6]} 32. Kd3 {[%clk 0:02:20.3]} 32... Kg6 {[%clk 0:00:56.8]} 33.
Ra4 {[%clk 0:02:12.3]} 33... Rb6 {[%clk 0:00:50.8]} 34. c4 {[%clk 0:02:10]}
34... Bc6 {[%clk 0:00:50.4]} 35. Ra2 {[%clk 0:01:50.9]} 35... f5 {[%clk
0:00:46.9]} 36. Bc3 {[%clk 0:01:39]} 36... g4 {[%clk 0:00:38.2]} 37. fxg4 {[%clk
0:01:37.2]} 37... fxg4 {[%clk 0:00:39.1]} 38. hxg4 {[%clk 0:01:37.4]} 38... Kg5
{[%clk 0:00:39.3]} 39. d5 {[%clk 0:01:37.1]} 39... exd5 {[%clk 0:00:36.8]} 40.
cxd5 {[%clk 0:01:38]} 40... Bxd5 {[%clk 0:00:28.2]} 41. Ra5 {[%clk 0:01:35.9]}
41... Rb5 {[%clk 0:00:28.2]} 42. Rxb5 {[%clk 0:01:34.8]} 42... axb5 {[%clk
0:00:28]} 43. Be5 {[%clk 0:01:10.3]} 43... Kxg4 {[%clk 0:00:23.5]} 44. Ke3
{[%clk 0:01:07.9]} 44... Bxg2 {[%clk 0:00:23.3]} 45. Kf2 {[%clk 0:01:08.2]}
45... Bd5 {[%clk 0:00:22.7]} 46. Kg1 {[%clk 0:01:06.4]} 46... b4 {[%clk
0:00:22.6]} 47. Kh2 {[%clk 0:01:05.1]} 47... b3 {[%clk 0:00:22.7]} 48. Bb2
{[%clk 0:01:03.8]} 48... Be6 {[%clk 0:00:22.1]} 49. Bf6 {[%clk 0:01:03.3]} 49...
Kf3 {[%clk 0:00:21.7]} 0-1